Body Name,Body,Transaction Date,Value,Supplier,Description,Purchase Type,Cost Center,Department,Section
South Ribble Council,http://Statistics.Data.gov.uk\Doc\Local Authority\30UN,20/01/2023,163.20,Premier Inn Preston South PR5 6BZ,NAME REDACTED Premier Inn Preston South PR5 6BZ ,Accomodation,124250,COMU-Communities,JBC-Homelessness
South Ribble Council,http://Statistics.Data.gov.uk\Doc\Local Authority\30UN,07/02/2023,10.00,Avacab Leyland Taxis,Taxi transportation with Avacab Leyland to take someone to a property viewing on 07.02.23,Travel,124050,COMU-Communities,JBC-Homelessness
South Ribble Council,http://Statistics.Data.gov.uk\Doc\Local Authority\30UN,07/02/2023,69.70,Premier Inn Preston Central PR1 2AB,NAME REDACTED Premier Inn Preston Central 07.02.,Accomodation,124250,COMU-Communities,JBC-Homelessness
South Ribble Council,http://Statistics.Data.gov.uk\Doc\Local Authority\30UN,07/02/2023,75.65,Premier Inn Bolton West BL6 4BA,NAME REDACTED Premier Inn Bolton West BL6 4BA 07,Accomodation,124250,COMU-Communities,JBC-Homelessness
South Ribble Council,http://Statistics.Data.gov.uk\Doc\Local Authority\30UN,07/02/2023,75.65,Premier Inn Bolton West BL6 4BA,NAME REDACTED Premier Inn Bolton West BL6 4BA 07,Accomodation,124250,COMU-Communities,JBC-Homelessness
South Ribble Council,http://Statistics.Data.gov.uk\Doc\Local Authority\30UN,07/02/2023,135.00,ibis Preston North PR3 5JE,NAME REDACTED ibis Preston North PR3 5JE 07.02.2,Accomodation,124250,COMU-Communities,JBC-Homelessness
South Ribble Council,http://Statistics.Data.gov.uk\Doc\Local Authority\30UN,08/02/2023,64.60,Premier Inn Chorley North PR6 8AB,NAME REDACTED Premier Inn Chorley North PR6 8AB ,Accomodation,124250,COMU-Communities,JBC-Homelessness
South Ribble Council,http://Statistics.Data.gov.uk\Doc\Local Authority\30UN,08/02/2023,70.00,ibis Preston North PR3 5JE,NAME REDACTED ibis Preston North PR3 5JE 08.02.2,Accomodation,124250,COMU-Communities,JBC-Homelessness
South Ribble Council,http://Statistics.Data.gov.uk\Doc\Local Authority\30UN,08/02/2023,70.00,IBIS PRESTON NORTH,"8th february - credit card payment taken twice for NAME REDACTED ibis Preston North PR3 5JE 08.02.23 - 09.02.23 NAME REDACTED - refund is coming soon says the hotel via email, should be with us w/c 27th march 2023",Accomodation,124250,COMU-Communities,JBC-Homelessness
South Ribble Council,http://Statistics.Data.gov.uk\Doc\Local Authority\30UN,08/02/2023,70.55,Premier Inn Preston North PR3 0RE,NAME REDACTED Premier Inn Preston North PR3 0RE ,Accomodation,124250,COMU-Communities,JBC-Homelessness
South Ribble Council,http://Statistics.Data.gov.uk\Doc\Local Authority\30UN,08/02/2023,74.80,Premier Inn Preston South PR5 6BZ,NAME REDACTED Premier Inn Preston South PR5 6BZ ,Accomodation,124250,COMU-Communities,JBC-Homelessness
South Ribble Council,http://Statistics.Data.gov.uk\Doc\Local Authority\30UN,08/02/2023,305.00,ibis Preston North PR3 5JE,NAME REDACTED ibis Preston North PR3 5JE 08.02.2,Accomodation,124050,COMU-Communities,JBC-Homelessness
South Ribble Council,http://Statistics.Data.gov.uk\Doc\Local Authority\30UN,16/02/2023,62.05,Premier Inn Preston Central PR1 2AB,NAME REDACTED Premier Inn Preston Central PR1 2A,Accomodation,124250,COMU-Communities,JBC-Homelessness
South Ribble Council,http://Statistics.Data.gov.uk\Doc\Local Authority\30UN,17/02/2023,215.00,Premier Inn Preston South PR5 6BZ,NAME REDACTED Premier Inn Preston South PR5 6BZ ,Accomodation,124050,COMU-Communities,JBC-Homelessness
South Ribble Council,http://Statistics.Data.gov.uk\Doc\Local Authority\30UN,24/02/2023,201.45,Premier Inn Preston Central PR1 2AB,NAME REDACTED Premier Inn Preston Central PR1 2A,Accomodation,124250,COMU-Communities,JBC-Homelessness
South Ribble Council,http://Statistics.Data.gov.uk\Doc\Local Authority\30UN,27/02/2023,523.50,Premier Inn Preston Central PR1 2AB,NAME REDACTED  Premier Inn Preston Central 28.02,Accomodation,124050,COMU-Communities,JBC-Homelessness
South Ribble Council,http://Statistics.Data.gov.uk\Doc\Local Authority\30UN,01/03/2023,74.80,Premier Inn Preston Central PR1 2AB,NAME REDACTED Premier Inn Preston Central PR1 2A,Accomodation,124050,COMU-Communities,JBC-Homelessness
South Ribble Council,http://Statistics.Data.gov.uk\Doc\Local Authority\30UN,22/03/2023,-70.00,ibis Preston North PR3 5JE,Refund from ibis Preston North for a payment they mistakenly took twice for NAME REDACTED who stayed there on 08/02/23 - 09/02/23.,Refund,124250,COMU-Communities,JBC-Homelessness
South Ribble Council,http://Statistics.Data.gov.uk\Doc\Local Authority\30UN,19/01/2023,55.25,Premier Inn Preston South PR5 6BZ,NAME REDACTED Premier Inn Preston South PR5 6BZ ,Accomodation,124250,COMU-Communities,JBC-Homelessness
South Ribble Council,http://Statistics.Data.gov.uk\Doc\Local Authority\30UN,24/01/2023,95.20,Premier Inn Bolton West BL6 4BA,NAME REDACTED Premier Inn Bolton West BL6 4BA 24,Accomodation,124250,COMU-Communities,JBC-Homelessness
South Ribble Council,http://Statistics.Data.gov.uk\Doc\Local Authority\30UN,24/01/2023,107.95,Premier Inn Wigan M6 Jct 27 WN6 0SS,NAME REDACTED Premier Inn Wigan M6 Jct 27 WN6 0S,Accomodation,124250,COMU-Communities,JBC-Homelessness
South Ribble Council,http://Statistics.Data.gov.uk\Doc\Local Authority\30UN,26/01/2023,58.65,Premier Inn Preston South PR5 6BZ,NAME REDACTED Premier Inn Preston South PR5 6BZ ,Accomodation,124250,COMU-Communities,JBC-Homelessness
South Ribble Council,http://Statistics.Data.gov.uk\Doc\Local Authority\30UN,30/01/2023,50.15,Premier Inn Bolton Stadium Arena BL6 6LB,NAME REDACTED Premier Inn Bolton Stadium Arena 3,Accomodation,124250,COMU-Communities,JBC-Homelessness
South Ribble Council,http://Statistics.Data.gov.uk\Doc\Local Authority\30UN,30/01/2023,50.15,Premier Inn Bolton Stadium Arena BL6 6LB,NAME REDACTED Premier Inn Bolton Stadium Arena 3,Accomodation,124250,COMU-Communities,JBC-Homelessness
South Ribble Council,http://Statistics.Data.gov.uk\Doc\Local Authority\30UN,30/01/2023,50.15,Premier Inn Bolton Stadium Arena BL6 6LB,NAME REDACTED Premier Inn Bolton Stadium Arena B,Accomodation,124250,COMU-Communities,JBC-Homelessness
South Ribble Council,http://Statistics.Data.gov.uk\Doc\Local Authority\30UN,01/02/2023,60.35,Premier Inn Bolton Stadium Arena BL6 6LB,NAME REDACTED Premier Inn Bolton Stadium Arena B,Accomodation,124250,COMU-Communities,JBC-Homelessness
South Ribble Council,http://Statistics.Data.gov.uk\Doc\Local Authority\30UN,01/02/2023,60.35,Premier Inn Bolton Stadium Arena BL6 6LB,NAME REDACTED Premier Inn Bolton Stadium Arena B,Accomodation,124250,COMU-Communities,JBC-Homelessness
South Ribble Council,http://Statistics.Data.gov.uk\Doc\Local Authority\30UN,01/02/2023,65.45,Premier Inn Preston Central PR1 2AB,NAME REDACTED Premier Inn Preston Central PR1 2A,Accomodation,124250,COMU-Communities,JBC-Homelessness
South Ribble Council,http://Statistics.Data.gov.uk\Doc\Local Authority\30UN,01/02/2023,65.45,Premier Inn Preston Central PR1 2AB,NAME REDACTED Premier Inn Preston Central PR1 2A,Accomodation,124250,COMU-Communities,JBC-Homelessness
South Ribble Council,http://Statistics.Data.gov.uk\Doc\Local Authority\30UN,02/02/2023,61.20,Premier Inn Preston Central PR1 2AB,NAME REDACTED Premier Inn Preston Central PR1 2A,Accomodation,124250,COMU-Communities,JBC-Homelessness
South Ribble Council,http://Statistics.Data.gov.uk\Doc\Local Authority\30UN,03/02/2023,114.90,Zeo Route Planner,"Invoice, 03.02.23, for Zeo Route Planner Premium annual subscription, 114.90 � THIS IS FOR STRATEGIC HOUSING: NAME REDACTED � authorised for use by NAME REDACTED. Invoice number: 16889B16-0001. Company details: Zeo Route Planner 2",Online Purchase,124000,COMU-Communities,JBC-Homelessness
South Ribble Council,http://Statistics.Data.gov.uk\Doc\Local Authority\30UN,07/02/2023,77.35,Premier Inn Wigan Town Centre,NAME REDACTED Premier Inn Wigan Town Centre 07.0,Accomodation,124250,COMU-Communities,JBC-Homelessness
South Ribble Council,http://Statistics.Data.gov.uk\Doc\Local Authority\30UN,20/02/2023,65.45,Premier Inn Chorley North PR6 8AB,NAME REDACTED  Premier Inn Chorley North PR6 8AB,Accomodation,124250,COMU-Communities,JBC-Homelessness
South Ribble Council,http://Statistics.Data.gov.uk\Doc\Local Authority\30UN,20/02/2023,81.60,Premier Inn Preston South PR5 6BZ,NAME REDACTED Premier Inn Preston South PR5 6BZ ,Accomodation,124050,COMU-Communities,JBC-Homelessness
South Ribble Council,http://Statistics.Data.gov.uk\Doc\Local Authority\30UN,20/02/2023,81.60,Premier Inn Preston Central PR1 2AB,NAME REDACTED Premier Inn Preston Central PR1 2A,Accomodation,124250,COMU-Communities,JBC-Homelessness
South Ribble Council,http://Statistics.Data.gov.uk\Doc\Local Authority\30UN,20/02/2023,599.50,Premier Inn Preston South PR5 6BZ,NAME REDACTED Premier Inn Preston South PR5 6BZ ,Accomodation,124250,COMU-Communities,JBC-Homelessness
South Ribble Council,http://Statistics.Data.gov.uk\Doc\Local Authority\30UN,21/02/2023,79.90,Premier Inn Chorley North PR6 8AB,NAME REDACTED Premier Inn Chorley North PR6 8AB ,Accomodation,124250,COMU-Communities,JBC-Homelessness
South Ribble Council,http://Statistics.Data.gov.uk\Doc\Local Authority\30UN,21/02/2023,83.30,Premier Inn Preston Central PR1 2AB,NAME REDACTED Premier Inn Preston Central PR1 2A,Accomodation,124250,COMU-Communities,JBC-Homelessness
South Ribble Council,http://Statistics.Data.gov.uk\Doc\Local Authority\30UN,21/02/2023,231.20,Blackburn South M65 J4 BB3 0SN,NAME REDACTED Blackburn South M65 J4 BB3 0SN 21.,Accomodation,124050,COMU-Communities,JBC-Homelessness
South Ribble Council,http://Statistics.Data.gov.uk\Doc\Local Authority\30UN,23/02/2023,61.20,Premier Inn Preston South PR5 6BZ,NAME REDACTED Premier Inn Preston South PR5 6BZ ,Accomodation,124250,COMU-Communities,JBC-Homelessness
South Ribble Council,http://Statistics.Data.gov.uk\Doc\Local Authority\30UN,24/02/2023,63.75,Premier Inn Preston South PR5 6BZ,NAME REDACTED Premier Inn Preston South PR5 6BZ ,Accomodation,124050,COMU-Communities,JBC-Homelessness
South Ribble Council,http://Statistics.Data.gov.uk\Doc\Local Authority\30UN,27/02/2023,81.60,Premier Inn Preston Central PR1 2AB,NAME REDACTED Premier Inn Preston Central PR1 2A,Accomodation,124050,COMU-Communities,JBC-Homelessness
South Ribble Council,http://Statistics.Data.gov.uk\Doc\Local Authority\30UN,28/02/2023,158.95,Premier Inn Preston South PR5 6BZ,NAME REDACTED Premier Inn Preston South PR5 6BZ ,Accomodation,124050,COMU-Communities,JBC-Homelessness
South Ribble Council,http://Statistics.Data.gov.uk\Doc\Local Authority\30UN,28/02/2023,219.30,Premier Inn Preston Central PR1 2AB,NAME REDACTED Premier Inn Preston Central PR1 2A,Accomodation,124050,COMU-Communities,JBC-Homelessness
South Ribble Council,http://Statistics.Data.gov.uk\Doc\Local Authority\30UN,07/03/2023,155.00,ibis Preston North PR3 5JE,NAME REDACTED ibis Preston North PR3 5JE 07.03.2,Accomodation,124050,COMU-Communities,JBC-Homelessness
South Ribble Council,http://Statistics.Data.gov.uk\Doc\Local Authority\30UN,17/03/2023,201.45,Premier Inn Preston South PR5 6BZ,NAME REDACTED Premier Inn Preston South PR5 6BZ ,Accomodation,124250,COMU-Communities,JBC-Homelessness
South Ribble Council,http://Statistics.Data.gov.uk\Doc\Local Authority\30UN,20/03/2023,64.00,Premier Inn Bolton Stadium Arena BL6 6LB,NAME REDACTED Premier Inn Bolton Stadium Arena B,Accomodation,124250,COMU-Communities,JBC-Homelessness
South Ribble Council,http://Statistics.Data.gov.uk\Doc\Local Authority\30UN,20/03/2023,70.00,Millers Citax Ltd,Taxi for NAME REDACTED from Beacon Fell Holiday Park on 20.03.23 with cab company Millers Citax Ltd,Travel,124050,COMU-Communities,JBC-Homelessness
South Ribble Council,http://Statistics.Data.gov.uk\Doc\Local Authority\30UN,22/03/2023,74.80,Premier Inn Preston Central PR1 2AB,NAME REDACTED Premier Inn Preston Central PR1 2A,Accomodation,124250,COMU-Communities,JBC-Homelessness
South Ribble Council,http://Statistics.Data.gov.uk\Doc\Local Authority\30UN,03/01/2023,51.85,Premier Inn Bolton Stadium Arena BL6 6LB,NAME REDACTED Premier Inn Bolton Stadium Arena B,Accomodation,124250,COMU-Communities,JBC-Homelessness
South Ribble Council,http://Statistics.Data.gov.uk\Doc\Local Authority\30UN,19/01/2023,298.08,WESTMINSTER INSIGHT,Training course to be attended by NAME REDACTED � Violence Against Women and Girls (VAWG) Digital Conference (Wednesday 29th March 2023) � WESTMINSTER INSIGHT,Accomodation,124950,COMU-Communities,JBC-Homelessness
South Ribble Council,http://Statistics.Data.gov.uk\Doc\Local Authority\30UN,02/02/2023,47.92,Travelodge,One night accommodation for NAME REDACTED at Travelodge Central Preston on 2.2.23,Online Purchase,124050,CDIG-Customer and Digital,JCD-Parks and Neighbourhoods
South Ribble Council,http://Statistics.Data.gov.uk\Doc\Local Authority\30UN,13/02/2023,195.00,THOMSON REUTERS,"The Law of Trees, Forests & Hedges - 3rd Edition",Online Purchase,172300,CDIG-Customer and Digital,JCD-Parks and Neighbourhoods
South Ribble Council,http://Statistics.Data.gov.uk\Doc\Local Authority\30UN,08/03/2023,148.20,PortalPlanQuest Limited,Street Record - Worden Park Leyland PP11997906v1SJP,Online Purchase,174300,COMP-Commercial and Property,JAD-Projects and Development
South Ribble Council,http://Statistics.Data.gov.uk\Doc\Local Authority\30UN,31/03/2023,302.50,DVLA,Vehicle Tax VIN REDACTED,Road Tax,172810,CDIG-Customer and Digital,JCE-Transport
South Ribble Council,http://Statistics.Data.gov.uk\Doc\Local Authority\30UN,27/01/2023,302.50,DVLA,Road tax Jan 2023 - VIN REDACTED,Road Tax,172840,CDIG-Customer and Digital,JCE-Transport
South Ribble Council,http://Statistics.Data.gov.uk\Doc\Local Authority\30UN,27/01/2023,302.50,DVLA,Road Tax Jan 2023 - VIN REDACTED,Road Tax,172810,CDIG-Customer and Digital,JCE-Transport
South Ribble Council,http://Statistics.Data.gov.uk\Doc\Local Authority\30UN,31/01/2023,162.00,DVLA,Road Tax Jan 2023 -VIN REDACTED(6 months only),Road Tax,172300,CDIG-Customer and Digital,JCE-Transport
South Ribble Council,http://Statistics.Data.gov.uk\Doc\Local Authority\30UN,17/02/2023,292.50,DVLA,Road tax Feb 2023 - VIN REDACTED,Online Purchase,173800,CDIG-Customer and Digital,JCE-Transport
South Ribble Council,http://Statistics.Data.gov.uk\Doc\Local Authority\30UN,17/02/2023,292.50,DVLA,Road Tax Feb 2023 - VIN REDACTED,Online Purchase,113110,CDIG-Customer and Digital,JCE-Transport
South Ribble Council,http://Statistics.Data.gov.uk\Doc\Local Authority\30UN,17/02/2023,292.50,DVLA,Road tax Feb 23 - VIN REDACTED,Online Purchase,171200,CDIG-Customer and Digital,JCE-Transport
South Ribble Council,http://Statistics.Data.gov.uk\Doc\Local Authority\30UN,17/02/2023,292.50,DVLA,Road tax Feb 2023 - VIN REDACTED,Online Purchase,172300,CDIG-Customer and Digital,JCE-Transport
South Ribble Council,http://Statistics.Data.gov.uk\Doc\Local Authority\30UN,17/02/2023,292.50,DVLA,Road tax Feb 2023 - VIN REDACTED,Online Purchase,172300,CDIG-Customer and Digital,JCE-Transport
South Ribble Council,http://Statistics.Data.gov.uk\Doc\Local Authority\30UN,09/01/2023,29.67,Tesco,PASTA cooking session items,Store Purchase,114820,COMU-Communities,JBA-Community Involvement
South Ribble Council,http://Statistics.Data.gov.uk\Doc\Local Authority\30UN,09/01/2023,37.40,Tesco,Items for community coffee morning at Carr Street,Store Purchase,114801,COMU-Communities,JBA-Community Involvement
South Ribble Council,http://Statistics.Data.gov.uk\Doc\Local Authority\30UN,09/01/2023,100.00,Tesco,Vouchers for PASTA food shops,Store Purchase,114820,COMU-Communities,JBA-Community Involvement
South Ribble Council,http://Statistics.Data.gov.uk\Doc\Local Authority\30UN,13/01/2023,176.10,MandJ Distributors,Dr Bike supplies,Online Purchase,113100,COMU-Communities,JBA-Community Involvement
South Ribble Council,http://Statistics.Data.gov.uk\Doc\Local Authority\30UN,16/01/2023,7.03,Tesco,Youth Council items,Store Purchase,144000,COMU-Communities,JBA-Community Involvement
South Ribble Council,http://Statistics.Data.gov.uk\Doc\Local Authority\30UN,24/01/2023,82.62,BIKEABILITY TRUST,Bikeability Conference for NAME REDACTED,Online Purchase,113100,COMU-Communities,JBA-Community Involvement
South Ribble Council,http://Statistics.Data.gov.uk\Doc\Local Authority\30UN,26/01/2023,22.80,Intelligent E-Learning Ltd,Food Safety Hygiene Courses,Online Purchase,114820,COMU-Communities,JBA-Community Involvement
South Ribble Council,http://Statistics.Data.gov.uk\Doc\Local Authority\30UN,30/01/2023,8.14,Tesco,Youth Council Items,Store Purchase,144000,COMU-Communities,JBA-Community Involvement
South Ribble Council,http://Statistics.Data.gov.uk\Doc\Local Authority\30UN,01/02/2023,32.40,Morrisons,Event items - cups and plates etc,Store Purchase,114800,COMU-Communities,JBA-Community Involvement
South Ribble Council,http://Statistics.Data.gov.uk\Doc\Local Authority\30UN,02/02/2023,3.82,Tesco,Items for PASTA cooking sessions,Store Purchase,114820,COMU-Communities,JBA-Community Involvement
South Ribble Council,http://Statistics.Data.gov.uk\Doc\Local Authority\30UN,02/02/2023,100.00,Tesco,Items for PASTA cooking sessions,Store Purchase,114820,COMU-Communities,JBA-Community Involvement
South Ribble Council,http://Statistics.Data.gov.uk\Doc\Local Authority\30UN,03/02/2023,270.00,KandD Supplies Limited,Bench plaques for Eastern Parishes Boost Fund project,Online Purchase,114806,COMU-Communities,JBA-Community Involvement
South Ribble Council,http://Statistics.Data.gov.uk\Doc\Local Authority\30UN,10/02/2023,37.83,BandM,Household Support Fund work/step up grant work,Store Purchase,101023,COMU-Communities,JBA-Community Involvement
South Ribble Council,http://Statistics.Data.gov.uk\Doc\Local Authority\30UN,10/02/2023,146.50,Matalan,Household Support Fund work,Store Purchase,101023,COMU-Communities,JBA-Community Involvement
South Ribble Council,http://Statistics.Data.gov.uk\Doc\Local Authority\30UN,10/02/2023,160.25,Matalan,Household Support Fund work,Store Purchase,101023,COMU-Communities,JBA-Community Involvement
South Ribble Council,http://Statistics.Data.gov.uk\Doc\Local Authority\30UN,13/02/2023,154.84,Prohort,Soil analysis,Online Purchase,114804,COMU-Communities,JBA-Community Involvement
South Ribble Council,http://Statistics.Data.gov.uk\Doc\Local Authority\30UN,17/02/2023,4.95,Tesco,Youth Council items,Store Purchase,144000,COMU-Communities,JBA-Community Involvement
South Ribble Council,http://Statistics.Data.gov.uk\Doc\Local Authority\30UN,17/02/2023,7.70,SumUp,Items for Youth Council,Store Purchase,144000,COMU-Communities,JBA-Community Involvement
South Ribble Council,http://Statistics.Data.gov.uk\Doc\Local Authority\30UN,22/02/2023,15.00,Tesco,Prize voucher for design a sign competition winner,Store Purchase,114804,COMU-Communities,JBA-Community Involvement
South Ribble Council,http://Statistics.Data.gov.uk\Doc\Local Authority\30UN,22/02/2023,30.00,Tesco,x2 gift cards for design a sign competition winner,Store Purchase,114804,COMU-Communities,JBA-Community Involvement
South Ribble Council,http://Statistics.Data.gov.uk\Doc\Local Authority\30UN,22/02/2023,150.00,Tesco,Warm welcome grant gift card for Barrel and Bean re socialisation cafe.,Store Purchase,114804,COMU-Communities,JBA-Community Involvement
South Ribble Council,http://Statistics.Data.gov.uk\Doc\Local Authority\30UN,24/02/2023,99.99,Canva,Subscription for year for Canva,Online Purchase,114800,COMU-Communities,JBA-Community Involvement
South Ribble Council,http://Statistics.Data.gov.uk\Doc\Local Authority\30UN,27/02/2023,4.19,Tesco,Youth Council meeting items,Store Purchase,144000,COMU-Communities,JBA-Community Involvement
South Ribble Council,http://Statistics.Data.gov.uk\Doc\Local Authority\30UN,27/02/2023,15.00,Tesco,Gift card for Design a Card competition winner,Store Purchase,114804,COMU-Communities,JBA-Community Involvement
South Ribble Council,http://Statistics.Data.gov.uk\Doc\Local Authority\30UN,27/02/2023,100.00,Tesco,Gift card for items for Youth Council meetings and events,Store Purchase,144000,COMU-Communities,JBA-Community Involvement
South Ribble Council,http://Statistics.Data.gov.uk\Doc\Local Authority\30UN,01/03/2023,304.96,SCOTTISH POWER,"Household Support Fund round 3, support for gas/fuel as part of step up",Online Purchase,101023,COMU-Communities,JBA-Community Involvement
South Ribble Council,http://Statistics.Data.gov.uk\Doc\Local Authority\30UN,07/03/2023,15.00,BandM,Items for Pasta Club,Store Purchase,114820,COMU-Communities,JBA-Community Involvement
South Ribble Council,http://Statistics.Data.gov.uk\Doc\Local Authority\30UN,07/03/2023,126.92,Tesco,Items and voucher for Pasta Club,Store Purchase,114820,COMU-Communities,JBA-Community Involvement
South Ribble Council,http://Statistics.Data.gov.uk\Doc\Local Authority\30UN,28/03/2023,383.66,KandF Concept UK,Wifi and CCTV to reduce ASB at Leyland and Farington Bowling Club,Online Purchase,114803,COMU-Communities,JBA-Community Involvement
South Ribble Council,http://Statistics.Data.gov.uk\Doc\Local Authority\30UN,29/03/2023,0.04,Fox Lane Sports and Social Club,Full team away day costs,Store Purchase,114800,COMU-Communities,JBA-Community Involvement
South Ribble Council,http://Statistics.Data.gov.uk\Doc\Local Authority\30UN,29/03/2023,478.66,Fox Lane Sports and Social Club,Full team away day costs,Store Purchase,114800,COMU-Communities,JBA-Community Involvement
South Ribble Council,http://Statistics.Data.gov.uk\Doc\Local Authority\30UN,19/02/2023,56.95,Premier Inn,Hotel Accommodation for NAME REDACTED,Accomodation,124050,CDIG-Customer and Digital,JCD-Parks and Neighbourhoods
South Ribble Council,http://Statistics.Data.gov.uk\Doc\Local Authority\30UN,25/01/2023,30.73,Meta,Facebook Ads SR,Online Purchase,115250,POLY-Policy,JFA-Communications and Visitor
South Ribble Council,http://Statistics.Data.gov.uk\Doc\Local Authority\30UN,25/01/2023,200.24,Meta,Facebook Ads (Chorley ads on wrong card),Online Purchase,115250,POLY-Policy,JFA-Communications and Visitor
South Ribble Council,http://Statistics.Data.gov.uk\Doc\Local Authority\30UN,25/02/2023,109.91,Meta,Meta Facebook Ads (Chorley wrong spend/communities funding and budget),Online Purchase,115250,POLY-Policy,JFA-Communications and Visitor
South Ribble Council,http://Statistics.Data.gov.uk\Doc\Local Authority\30UN,25/02/2023,143.23,Meta,Meta Facebook Ads,Online Purchase,126500,POLY-Policy,JFA-Communications and Visitor
South Ribble Council,http://Statistics.Data.gov.uk\Doc\Local Authority\30UN,28/02/2023,205.73,Trainline,Trainline tickets (London Euston),Online Purchase,115250,POLY-Policy,JFA-Communications and Visitor
South Ribble Council,http://Statistics.Data.gov.uk\Doc\Local Authority\30UN,15/03/2023,116.10,Meta,Meta Ads Leisure Centres,Online Purchase,115250,POLY-Policy,JFA-Communications and Visitor
South Ribble Council,http://Statistics.Data.gov.uk\Doc\Local Authority\30UN,21/03/2023,594.00,The Arden Hotel,The Arden Hotel - Place of stay for tourism weekend,Online Purchase,114100,POLY-Policy,JFA-Communications and Visitor
South Ribble Council,http://Statistics.Data.gov.uk\Doc\Local Authority\30UN,05/01/2023,116.66,Amazon,Book,Online Purchase,123100,GOVE-Governance,JDC-Corporate Support
South Ribble Council,http://Statistics.Data.gov.uk\Doc\Local Authority\30UN,11/01/2023,25.00,Holocaust Memorial Day Trust,Memorial Items,Online Purchase,115600,GOVE-Governance,JDC-Corporate Support
South Ribble Council,http://Statistics.Data.gov.uk\Doc\Local Authority\30UN,11/01/2023,25.00,Holocaust Memorial Day Trust,Memorial Items (2),Online Purchase,115600,GOVE-Governance,JDC-Corporate Support
South Ribble Council,http://Statistics.Data.gov.uk\Doc\Local Authority\30UN,17/01/2023,-116.66,Amazon,Refund - Book,Refund,123100,GOVE-Governance,JDC-Corporate Support
South Ribble Council,http://Statistics.Data.gov.uk\Doc\Local Authority\30UN,17/01/2023,"1,224.00",Ventrbrook,Withy Grove Park Safety,Online Purchase,125420,GOVE-Governance,JDC-Corporate Support
South Ribble Council,http://Statistics.Data.gov.uk\Doc\Local Authority\30UN,25/01/2023,58.70,Trainline,Train ticket puchase,Rail Fare,115600,GOVE-Governance,JDC-Corporate Support
South Ribble Council,http://Statistics.Data.gov.uk\Doc\Local Authority\30UN,17/02/2023,102.00,RTPI,Subscription,Online Purchase,122700,GOVE-Governance,JDC-Corporate Support
South Ribble Council,http://Statistics.Data.gov.uk\Doc\Local Authority\30UN,16/03/2023,"1,768.00",Cadent,Quinn Street words,Online Purchase,207094,GOVE-Governance,JDC-Corporate Support
South Ribble Council,http://Statistics.Data.gov.uk\Doc\Local Authority\30UN,09/01/2023,18.00,EE,2 x top up 9,Online Purchase,133000,CDIG-Customer and Digital,JCC-Information Services
South Ribble Council,http://Statistics.Data.gov.uk\Doc\Local Authority\30UN,09/01/2023,"2,932.17",Microsoft,Microsoft Azure Jan 23,Online Purchase,133000,CDIG-Customer and Digital,JCC-Information Services
South Ribble Council,http://Statistics.Data.gov.uk\Doc\Local Authority\30UN,10/01/2023,190.62,Amazon,Smart printer ribbons x 3,Online Purchase,133000,CDIG-Customer and Digital,JCC-Information Services
South Ribble Council,http://Statistics.Data.gov.uk\Doc\Local Authority\30UN,12/01/2023,"2,900.00",ICO,ICO 2023,Online Purchase,133000,CDIG-Customer and Digital,JCC-Information Services
South Ribble Council,http://Statistics.Data.gov.uk\Doc\Local Authority\30UN,16/01/2023,59.90,Amazon,10 x usb c chargers for cars,Online Purchase,133000,CDIG-Customer and Digital,JCC-Information Services
South Ribble Council,http://Statistics.Data.gov.uk\Doc\Local Authority\30UN,24/01/2023,215.82,Zoom Video Communications,15 x Zoom licences,Online Purchase,133000,CDIG-Customer and Digital,JCC-Information Services
South Ribble Council,http://Statistics.Data.gov.uk\Doc\Local Authority\30UN,09/02/2023,9.00,EE,Top UP,Online Purchase,133000,CDIG-Customer and Digital,JCC-Information Services
South Ribble Council,http://Statistics.Data.gov.uk\Doc\Local Authority\30UN,09/02/2023,9.00,EE,EE Top UP,Online Purchase,133000,CDIG-Customer and Digital,JCC-Information Services
South Ribble Council,http://Statistics.Data.gov.uk\Doc\Local Authority\30UN,09/02/2023,"2,945.72",Microsoft,Microsoft Azure 2023,Online Purchase,133000,CDIG-Customer and Digital,JCC-Information Services
South Ribble Council,http://Statistics.Data.gov.uk\Doc\Local Authority\30UN,16/02/2023,49.81,Scribe,Scribe,Online Purchase,133000,CDIG-Customer and Digital,JCC-Information Services
South Ribble Council,http://Statistics.Data.gov.uk\Doc\Local Authority\30UN,24/02/2023,215.82,Zoom,Zoom,Online Purchase,133000,CDIG-Customer and Digital,JCC-Information Services
South Ribble Council,http://Statistics.Data.gov.uk\Doc\Local Authority\30UN,11/03/2023,9.00,EE,Top up,Online Purchase,133000,CDIG-Customer and Digital,JCC-Information Services
South Ribble Council,http://Statistics.Data.gov.uk\Doc\Local Authority\30UN,11/03/2023,"2,668.81",Microsoft,Microsoft cloud cost,Online Purchase,133000,CDIG-Customer and Digital,JCC-Information Services
South Ribble Council,http://Statistics.Data.gov.uk\Doc\Local Authority\30UN,16/03/2023,99.06,Scribe,Scribe software,Online Purchase,133000,CDIG-Customer and Digital,JCC-Information Services
South Ribble Council,http://Statistics.Data.gov.uk\Doc\Local Authority\30UN,24/03/2023,233.82,Zoom Video Communications,Zoom licensing,Online Purchase,133000,CDIG-Customer and Digital,JCC-Information Services
South Ribble Council,http://Statistics.Data.gov.uk\Doc\Local Authority\30UN,09/01/2023,63.75,Premier Inn Bolton West BL6 4BA,NAME REDACTED Premier Inn Bolton West BL6 4BA 09,Accomodation,124250,COMU-Communities,JBC-Homelessness
South Ribble Council,http://Statistics.Data.gov.uk\Doc\Local Authority\30UN,09/01/2023,66.30,Premier Inn Preston Central PR1 2AB,NAME REDACTED Premier Inn Preston Central PR1 2A,Accomodation,124250,COMU-Communities,JBC-Homelessness
South Ribble Council,http://Statistics.Data.gov.uk\Doc\Local Authority\30UN,11/01/2023,74.80,Premier Inn Preston South PR5 6BZ,NAME REDACTED Premier Inn Preston South PR5 6BZ ,Accomodation,124050,COMU-Communities,JBC-Homelessness
South Ribble Council,http://Statistics.Data.gov.uk\Doc\Local Authority\30UN,18/01/2023,71.40,Premier Inn Preston South PR5 6BZ,NAME REDACTED Premier Inn Preston South PR5 6BZ ,Accomodation,124250,COMU-Communities,JBC-Homelessness
South Ribble Council,http://Statistics.Data.gov.uk\Doc\Local Authority\30UN,18/01/2023,453.00,Premier Inn Preston South PR5 6BZ,NAME REDACTED  Premier Inn Preston South PR5 6BZ,Accomodation,124250,COMU-Communities,JBC-Homelessness
South Ribble Council,http://Statistics.Data.gov.uk\Doc\Local Authority\30UN,25/01/2023,74.80,Premier Inn Preston South PR5 6BZ,NAME REDACTED Premier Inn Preston South PR5 6BZ ,Accomodation,124250,COMU-Communities,JBC-Homelessness
South Ribble Council,http://Statistics.Data.gov.uk\Doc\Local Authority\30UN,25/01/2023,74.80,Premier Inn Preston South PR5 6BZ,NAME REDACTED  Premier Inn Preston South PR5 6BZ,Accomodation,124250,COMU-Communities,JBC-Homelessness
South Ribble Council,http://Statistics.Data.gov.uk\Doc\Local Authority\30UN,25/01/2023,74.80,Premier Inn Preston South PR5 6BZ,NAME REDACTED Premier Inn Preston South PR5 6BZ ,Accomodation,124250,COMU-Communities,JBC-Homelessness
South Ribble Council,http://Statistics.Data.gov.uk\Doc\Local Authority\30UN,26/01/2023,58.65,Premier Inn Preston South PR5 6BZ,NAME REDACTED Premier Inn Preston South PR5 6BZ ,Accomodation,124250,COMU-Communities,JBC-Homelessness
South Ribble Council,http://Statistics.Data.gov.uk\Doc\Local Authority\30UN,26/01/2023,61.20,Premier Inn Preston Central PR1 2AB,NAME REDACTED Premier Inn Preston Central PR1 2A,Accomodation,124250,COMU-Communities,JBC-Homelessness
South Ribble Council,http://Statistics.Data.gov.uk\Doc\Local Authority\30UN,31/01/2023,69.70,Premier Inn Preston Central PR1 2AB,NAME REDACTED Premier Inn Preston Central PR1 2A,Accomodation,124250,COMU-Communities,JBC-Homelessness
South Ribble Council,http://Statistics.Data.gov.uk\Doc\Local Authority\30UN,31/01/2023,69.70,Premier Inn Bolton Stadium Arena BL6 6LB,NAME REDACTED Premier Inn Bolton Stadium Arena 3,Accomodation,124250,COMU-Communities,JBC-Homelessness
South Ribble Council,http://Statistics.Data.gov.uk\Doc\Local Authority\30UN,31/01/2023,69.70,Premier Inn Bolton Stadium Arena BL6 6LB,NAME REDACTED Premier Inn Bolton Stadium Arena B,Accomodation,124250,COMU-Communities,JBC-Homelessness
South Ribble Council,http://Statistics.Data.gov.uk\Doc\Local Authority\30UN,31/01/2023,82.45,Premier Inn Preston South PR5 6BZ,NAME REDACTED Premier Inn Preston South PR5 6BZ ,Accomodation,124250,COMU-Communities,JBC-Homelessness
South Ribble Council,http://Statistics.Data.gov.uk\Doc\Local Authority\30UN,02/02/2023,72.00,Premier Inn Preston Central PR1 2AB,NAME REDACTED Premier Inn Preston Central PR1 2A,Accomodation,124250,COMU-Communities,JBC-Homelessness
South Ribble Council,http://Statistics.Data.gov.uk\Doc\Local Authority\30UN,03/02/2023,179.35,Premier Inn Preston Central PR1 2AB,NAME REDACTED Premier Inn Preston Central PR1 2A,Accomodation,124250,COMU-Communities,JBC-Homelessness
South Ribble Council,http://Statistics.Data.gov.uk\Doc\Local Authority\30UN,09/02/2023,315.35,Premier Inn Preston Central PR1 2AB,NAME REDACTED Premier Inn Preston Central PR1 2A,Accomodation,124050,COMU-Communities,JBC-Homelessness
South Ribble Council,http://Statistics.Data.gov.uk\Doc\Local Authority\30UN,09/02/2023,339.50,Premier Inn Preston Central PR1 2AB,NAME REDACTED Premier Inn Preston Central PR1 2A,Accomodation,124050,COMU-Communities,JBC-Homelessness
South Ribble Council,http://Statistics.Data.gov.uk\Doc\Local Authority\30UN,10/02/2023,175.95,Premier Inn Preston South PR5 6BZ,NAME REDACTED Premier Inn Preston South PR5 6BZ ,Accomodation,124250,COMU-Communities,JBC-Homelessness
South Ribble Council,http://Statistics.Data.gov.uk\Doc\Local Authority\30UN,10/02/2023,175.95,Premier Inn Preston South PR5 6BZ,NAME REDACTED Premier Inn Preston South PR5 6BZ ,Accomodation,124050,COMU-Communities,JBC-Homelessness
South Ribble Council,http://Statistics.Data.gov.uk\Doc\Local Authority\30UN,13/02/2023,593.00,Premier Inn Preston South PR5 6BZ,NAME REDACTED Premier Inn Preston South PR5 6BZ ,Accomodation,124050,COMU-Communities,JBC-Homelessness
South Ribble Council,http://Statistics.Data.gov.uk\Doc\Local Authority\30UN,14/02/2023,625.00,ibis Preston North PR3 5JE,NAME REDACTED ibis Preston North PR3 5JE 14.02.2,Accomodation,124050,COMU-Communities,JBC-Homelessness
South Ribble Council,http://Statistics.Data.gov.uk\Doc\Local Authority\30UN,15/02/2023,-104.55,Premier Inn Preston Central PR1 2AB,refund for the card transaction for: NAME REDACTEDPremier Inn Preston Central PR1 2AB 15.02.23 - 16.02.23 TM � booking cancelled by hotel,Refund,124050,COMU-Communities,JBC-Homelessness
South Ribble Council,http://Statistics.Data.gov.uk\Doc\Local Authority\30UN,15/02/2023,104.55,Premier Inn Preston Central PR1 2AB,NAME REDACTED Premier Inn Preston Central PR1 2A,Accomodation,124050,COMU-Communities,JBC-Homelessness
South Ribble Council,http://Statistics.Data.gov.uk\Doc\Local Authority\30UN,02/03/2023,63.75,Premier Inn Preston Central PR1 2AB,NAME REDACTED Premier Inn Preston Central PR1 2A,Accomodation,124050,COMU-Communities,JBC-Homelessness
South Ribble Council,http://Statistics.Data.gov.uk\Doc\Local Authority\30UN,02/03/2023,63.75,Premier Inn Preston Central PR1 2AB,NAME REDACTED Premier Inn Preston Central PR1 2A,Accomodation,124050,COMU-Communities,JBC-Homelessness
South Ribble Council,http://Statistics.Data.gov.uk\Doc\Local Authority\30UN,06/03/2023,528.50,Premier Inn Preston Central PR1 2AB,NAME REDACTED  Premier Inn Preston Central PR1 2,Accomodation,124050,COMU-Communities,JBC-Homelessness
South Ribble Council,http://Statistics.Data.gov.uk\Doc\Local Authority\30UN,13/03/2023,-81.00,Premier Inn Preston Central PR1 2AB,Premier Inn refund to NAME REDACTED credit card on 13 March 2023,Refund,124250,COMU-Communities,JBC-Homelessness
South Ribble Council,http://Statistics.Data.gov.uk\Doc\Local Authority\30UN,13/03/2023,539.50,Premier Inn Preston Central PR1 2AB,NAME REDACTED  Premier Inn Preston Central 13.03,Accomodation,124050,COMU-Communities,JBC-Homelessness
South Ribble Council,http://Statistics.Data.gov.uk\Doc\Local Authority\30UN,14/03/2023,204.00,Premier Inn Preston South PR5 6BZ,NAME REDACTED Premier Inn Preston South PR5 6BZ ,Accomodation,124050,COMU-Communities,JBC-Homelessness
South Ribble Council,http://Statistics.Data.gov.uk\Doc\Local Authority\30UN,15/03/2023,74.80,Premier Inn Preston Central PR1 2AB,NAME REDACTED Premier Inn Preston Central PR1 2A,Accomodation,124250,COMU-Communities,JBC-Homelessness
South Ribble Council,http://Statistics.Data.gov.uk\Doc\Local Authority\30UN,21/03/2023,160.00,Millers Citax Ltd,Taxi fare receipt from Millers Citax Ltd cab company for NAME REDACTED to get to Leeds on 21.03.23,Travel,124050,COMU-Communities,JBC-Homelessness
South Ribble Council,http://Statistics.Data.gov.uk\Doc\Local Authority\30UN,24/03/2023,536.00,Premier Inn Preston Central PR1 2AB,NAME REDACTED Premier Inn Preston Central PR1 2A,Accomodation,124050,COMU-Communities,JBC-Homelessness
South Ribble Council,http://Statistics.Data.gov.uk\Doc\Local Authority\30UN,04/01/2023,50.15,Premier Inn Bolton Stadium Arena BL6 6LB,NAME REDACTED Premier Inn Bolton Stadium Arena B,Accomodation,124250,COMU-Communities,JBC-Homelessness
South Ribble Council,http://Statistics.Data.gov.uk\Doc\Local Authority\30UN,04/01/2023,54.40,Premier Inn Preston South PR5 6BZ,NAME REDACTED Premier Inn Preston South PR5 6BZ ,Accomodation,124250,COMU-Communities,JBC-Homelessness
South Ribble Council,http://Statistics.Data.gov.uk\Doc\Local Authority\30UN,05/01/2023,50.15,Premier Inn Bolton Stadium Arena BL6 6LB,NAME REDACTED Premier Inn Bolton Stadium Arena B,Accomodation,124250,COMU-Communities,JBC-Homelessness
South Ribble Council,http://Statistics.Data.gov.uk\Doc\Local Authority\30UN,05/01/2023,54.40,Premier Inn Preston South PR5 6BZ,NAME REDACTED Premier Inn Preston South PR5 6BZ ,Accomodation,124250,COMU-Communities,JBC-Homelessness
South Ribble Council,http://Statistics.Data.gov.uk\Doc\Local Authority\30UN,06/01/2023,158.10,Premier Inn Preston South PR5 6BZ,NAME REDACTED Premier Inn Preston South PR5 6BZ ,Accomodation,124250,COMU-Communities,JBC-Homelessness
South Ribble Council,http://Statistics.Data.gov.uk\Doc\Local Authority\30UN,06/01/2023,162.35,Premier Inn Bolton West BL6 4BA,NAME REDACTED Premier Inn Bolton West BL6 4BA 06,Accomodation,124250,COMU-Communities,JBC-Homelessness
South Ribble Council,http://Statistics.Data.gov.uk\Doc\Local Authority\30UN,10/01/2023,40.50,Premier Inn Bolton West BL6 4BA,NAME REDACTED Premier Inn Bolton West BL6 4BA 10,Accomodation,124250,COMU-Communities,JBC-Homelessness
South Ribble Council,http://Statistics.Data.gov.uk\Doc\Local Authority\30UN,10/01/2023,88.40,Premier Inn Preston South PR5 6BZ,NAME REDACTED Premier Inn Preston South PR5 6BZ ,Accomodation,124250,COMU-Communities,JBC-Homelessness
South Ribble Council,http://Statistics.Data.gov.uk\Doc\Local Authority\30UN,10/01/2023,106.25,Premier Inn Preston Central PR1 2AB,NAME REDACTED Premier Inn Preston Central PR1 2A,Accomodation,124250,COMU-Communities,JBC-Homelessness
South Ribble Council,http://Statistics.Data.gov.uk\Doc\Local Authority\30UN,11/01/2023,36.00,Premier Inn Bolton West BL6 4BA,"NAME REDACTED, Further to our telephone conversation earlier today,I wish to confirm that I authorise you to take an additional 36.00 from the credit card, in order to amend the booking of a room for NAME REDACTED, for one night, from 5/2/23 to 11/1/23",Accomodation,124250,COMU-Communities,JBC-Homelessness
South Ribble Council,http://Statistics.Data.gov.uk\Doc\Local Authority\30UN,11/01/2023,74.80,Premier Inn Preston South PR5 6BZ,NAME REDACTED Premier Inn Preston South PR5 6BZ ,Accomodation,124250,COMU-Communities,JBC-Homelessness
South Ribble Council,http://Statistics.Data.gov.uk\Doc\Local Authority\30UN,12/01/2023,58.65,Premier Inn Preston South PR5 6BZ,NAME REDACTED Premier Inn Preston South PR5 6BZ ,Accomodation,124250,COMU-Communities,JBC-Homelessness
South Ribble Council,http://Statistics.Data.gov.uk\Doc\Local Authority\30UN,12/01/2023,58.65,Premier Inn Preston South PR5 6BZ,NAME REDACTED Premier Inn Preston South PR5 6BZ ,Accomodation,124250,COMU-Communities,JBC-Homelessness
South Ribble Council,http://Statistics.Data.gov.uk\Doc\Local Authority\30UN,13/01/2023,60.35,Premier Inn Preston South PR5 6BZ,NAME REDACTED Premier Inn Preston South PR5 6BZ ,Accomodation,124250,COMU-Communities,JBC-Homelessness
South Ribble Council,http://Statistics.Data.gov.uk\Doc\Local Authority\30UN,13/01/2023,160.65,Premier Inn Preston South PR5 6BZ,NAME REDACTED Premier Inn Preston South PR5 6BZ ,Accomodation,124250,COMU-Communities,JBC-Homelessness
South Ribble Council,http://Statistics.Data.gov.uk\Doc\Local Authority\30UN,13/01/2023,160.65,Premier Inn Preston South PR5 6BZ,NAME REDACTED Premier Inn Preston South PR5 6BZ ,Accomodation,124250,COMU-Communities,JBC-Homelessness
South Ribble Council,http://Statistics.Data.gov.uk\Doc\Local Authority\30UN,16/01/2023,62.90,Premier Inn Preston South PR5 6BZ,NAME REDACTED Premier Inn Preston South PR5 6BZ ,Accomodation,124250,COMU-Communities,JBC-Homelessness
South Ribble Council,http://Statistics.Data.gov.uk\Doc\Local Authority\30UN,17/01/2023,82.45,Premier Inn Preston South PR5 6BZ,NAME REDACTED Premier Inn Preston South PR5 6BZ ,Accomodation,124250,COMU-Communities,JBC-Homelessness
South Ribble Council,http://Statistics.Data.gov.uk\Doc\Local Authority\30UN,23/01/2023,59.50,Premier Inn Preston South PR5 6BZ,NAME REDACTED Premier Inn Preston South PR5 6BZ ,Accomodation,124250,COMU-Communities,JBC-Homelessness
South Ribble Council,http://Statistics.Data.gov.uk\Doc\Local Authority\30UN,27/01/2023,172.55,Premier Inn Bolton Stadium Arena BL6 6LB,NAME REDACTED Premier Inn Bolton Stadium Arena B,Accomodation,124250,COMU-Communities,JBC-Homelessness
South Ribble Council,http://Statistics.Data.gov.uk\Doc\Local Authority\30UN,27/01/2023,172.55,Premier Inn Bolton Stadium Arena BL6 6LB,NAME REDACTED Premier Inn Bolton Stadium Arena B,Accomodation,124250,COMU-Communities,JBC-Homelessness
South Ribble Council,http://Statistics.Data.gov.uk\Doc\Local Authority\30UN,27/01/2023,172.55,Premier Inn Bolton Stadium Arena BL6 6LB,NAME REDACTED Premier Inn Bolton Stadium Arena B,Accomodation,124250,COMU-Communities,JBC-Homelessness
South Ribble Council,http://Statistics.Data.gov.uk\Doc\Local Authority\30UN,02/02/2023,50.15,Premier Inn Bolton Stadium Arena BL6 6LB,NAME REDACTED Premier Inn Bolton Stadium Arena B,Accomodation,124250,COMU-Communities,JBC-Homelessness
South Ribble Council,http://Statistics.Data.gov.uk\Doc\Local Authority\30UN,02/02/2023,58.65,Premier Inn Preston South PR5 6BZ,NAME REDACTED Premier Inn Preston South PR5 6BZ ,Accomodation,124250,COMU-Communities,JBC-Homelessness
South Ribble Council,http://Statistics.Data.gov.uk\Doc\Local Authority\30UN,02/02/2023,61.20,Premier Inn Preston Central PR1 2AB,NAME REDACTED Premier Inn Preston Central PR1 2A,Accomodation,124250,COMU-Communities,JBC-Homelessness
South Ribble Council,http://Statistics.Data.gov.uk\Doc\Local Authority\30UN,03/02/2023,160.65,Premier Inn Preston South PR5 6BZ,NAME REDACTED Premier Inn Preston South PR5 6BZ ,Accomodation,124250,COMU-Communities,JBC-Homelessness
South Ribble Council,http://Statistics.Data.gov.uk\Doc\Local Authority\30UN,03/02/2023,169.15,Premier Inn Bolton Stadium Arena BL6 6LB,NAME REDACTED Premier Inn Bolton Stadium Arena B,Accomodation,124250,COMU-Communities,JBC-Homelessness
South Ribble Council,http://Statistics.Data.gov.uk\Doc\Local Authority\30UN,03/02/2023,178.50,Premier Inn Preston Central PR1 2AB,NAME REDACTED Premier Inn Preston Central PR1 2A,Accomodation,124250,COMU-Communities,JBC-Homelessness
South Ribble Council,http://Statistics.Data.gov.uk\Doc\Local Authority\30UN,03/02/2023,210.00,Premier Inn Preston Central PR1 2AB,NAME REDACTED Premier Inn Preston Central PR1 2A,Accomodation,124250,COMU-Communities,JBC-Homelessness
South Ribble Council,http://Statistics.Data.gov.uk\Doc\Local Authority\30UN,06/02/2023,54.40,Premier Inn Bolton Stadium Arena BL6 6LB,NAME REDACTED Premier Inn Bolton Stadium Arena B,Accomodation,124250,COMU-Communities,JBC-Homelessness
South Ribble Council,http://Statistics.Data.gov.uk\Doc\Local Authority\30UN,06/02/2023,54.40,Premier Inn Bolton Stadium Arena BL6 6LB,NAME REDACTED Premier Inn Bolton Stadium Arena B,Accomodation,124250,COMU-Communities,JBC-Homelessness
South Ribble Council,http://Statistics.Data.gov.uk\Doc\Local Authority\30UN,06/02/2023,56.95,Premier Inn Bolton Stadium Arena BL6 6LB,NAME REDACTED Premier Inn Bolton Stadium Arena B,Accomodation,124250,COMU-Communities,JBC-Homelessness
South Ribble Council,http://Statistics.Data.gov.uk\Doc\Local Authority\30UN,06/02/2023,91.80,Premier Inn Chorley North PR6 8AB,NAME REDACTED Premier Inn Chorley North PR6 8AB ,Accomodation,124250,COMU-Communities,JBC-Homelessness
South Ribble Council,http://Statistics.Data.gov.uk\Doc\Local Authority\30UN,09/02/2023,-55.00,Premier Inn Preston Central PR1 2AB,Refund - NAME REDACTED Premier Inn Preston Central PR1 2AB 26.02.23 - 27.02.23 NAME REDACTED - wrong date booked by human error,Refund,124250,COMU-Communities,JBC-Homelessness
South Ribble Council,http://Statistics.Data.gov.uk\Doc\Local Authority\30UN,09/02/2023,55.00,Premier Inn Preston Central PR1 2AB,NAME REDACTED Premier Inn Preston Central PR1 2A,Accomodation,124250,COMU-Communities,JBC-Homelessness
South Ribble Council,http://Statistics.Data.gov.uk\Doc\Local Authority\30UN,09/02/2023,58.65,Premier Inn Preston South PR5 6BZ,NAME REDACTED Premier Inn Preston South PR5 6BZ ,Accomodation,124250,COMU-Communities,JBC-Homelessness
South Ribble Council,http://Statistics.Data.gov.uk\Doc\Local Authority\30UN,09/02/2023,62.05,Premier Inn Preston Central PR1 2AB,NAME REDACTED Premier Inn Preston Central PR1 2A,Accomodation,124250,COMU-Communities,JBC-Homelessness
South Ribble Council,http://Statistics.Data.gov.uk\Doc\Local Authority\30UN,09/02/2023,64.60,Premier Inn Chorley North PR6 8AB,NAME REDACTED Premier Inn Chorley North PR6 8AB ,Accomodation,124250,COMU-Communities,JBC-Homelessness
South Ribble Council,http://Statistics.Data.gov.uk\Doc\Local Authority\30UN,13/02/2023,72.25,Premier Inn Preston South PR5 6BZ,NAME REDACTED Premier Inn Preston South PR5 6BZ ,Accomodation,124250,COMU-Communities,JBC-Homelessness
South Ribble Council,http://Statistics.Data.gov.uk\Doc\Local Authority\30UN,13/02/2023,163.20,Premier Inn Preston South PR5 6BZ,NAME REDACTED Premier Inn Preston South PR5 6BZ ,Accomodation,124050,COMU-Communities,JBC-Homelessness
South Ribble Council,http://Statistics.Data.gov.uk\Doc\Local Authority\30UN,13/02/2023,311.95,Premier Inn Bolton West BL6 4BA,NAME REDACTED Premier Inn Bolton West BL6 4BA 13,Accomodation,124050,COMU-Communities,JBC-Homelessness
South Ribble Council,http://Statistics.Data.gov.uk\Doc\Local Authority\30UN,22/02/2023,116.45,Premier Inn Bolton Stadium Arena BL6 6LB,NAME REDACTED Premier Inn Bolton Stadium Arena B,Accomodation,124250,COMU-Communities,JBC-Homelessness
South Ribble Council,http://Statistics.Data.gov.uk\Doc\Local Authority\30UN,22/02/2023,116.45,Premier Inn Bolton Stadium Arena BL6 6LB,NAME REDACTED  Premier Inn Bolton Stadium Arena ,Accomodation,124050,COMU-Communities,JBC-Homelessness
South Ribble Council,http://Statistics.Data.gov.uk\Doc\Local Authority\30UN,24/02/2023,283.05,Premier Inn Preston Central PR1 2AB,NAME REDACTED  Premier Inn Preston Central PR1 2,Accomodation,124050,COMU-Communities,JBC-Homelessness
South Ribble Council,http://Statistics.Data.gov.uk\Doc\Local Authority\30UN,28/02/2023,80.75,Premier Inn Preston South PR5 6BZ,NAME REDACTED Premier Inn Preston South PR5 6BZ ,Accomodation,124050,COMU-Communities,JBC-Homelessness
South Ribble Council,http://Statistics.Data.gov.uk\Doc\Local Authority\30UN,03/03/2023,201.45,Premier Inn Preston Central PR1 2AB,NAME REDACTED Premier Inn Preston Central PR1 2A,Accomodation,124050,COMU-Communities,JBC-Homelessness
South Ribble Council,http://Statistics.Data.gov.uk\Doc\Local Authority\30UN,03/03/2023,202.30,Premier Inn Preston South PR5 6BZ,NAME REDACTED Premier Inn Preston South PR5 6BZ ,Accomodation,124050,COMU-Communities,JBC-Homelessness
South Ribble Council,http://Statistics.Data.gov.uk\Doc\Local Authority\30UN,03/03/2023,291.55,Premier Inn Preston South PR5 6BZ,NAME REDACTED Premier Inn Preston South PR5 6BZ ,Accomodation,124050,COMU-Communities,JBC-Homelessness
South Ribble Council,http://Statistics.Data.gov.uk\Doc\Local Authority\30UN,03/03/2023,533.50,Premier Inn Preston Central PR1 2AB,NAME REDACTED Premier Inn Preston Central PR1 2A,Accomodation,124050,COMU-Communities,JBC-Homelessness
South Ribble Council,http://Statistics.Data.gov.uk\Doc\Local Authority\30UN,13/03/2023,288.00,Premier Inn Preston Central PR1 2AB,NAME REDACTED Premier Inn Preston Central PR1 2A,Accomodation,124050,COMU-Communities,JBC-Homelessness
South Ribble Council,http://Statistics.Data.gov.uk\Doc\Local Authority\30UN,16/03/2023,540.00,Premier Inn Preston Central PR1 2AB,NAME REDACTED Premier Inn Preston Central PR1 2A,Accomodation,124050,COMU-Communities,JBC-Homelessness
South Ribble Council,http://Statistics.Data.gov.uk\Doc\Local Authority\30UN,21/03/2023,74.80,Premier Inn Chorley North PR6 8AB,NAME REDACTED Premier Inn Chorley North PR6 8AB ,Accomodation,124250,COMU-Communities,JBC-Homelessness
South Ribble Council,http://Statistics.Data.gov.uk\Doc\Local Authority\30UN,20/01/2023,60.29,EB ROUGH SLEEPING CON,Eventbrite Rough Sleeping Conference 2023 on Monday 27 March 2023 for NAME REDACTED to attend online,Online Purchase,124250,COMU-Communities,JBC-Homelessness
South Ribble Council,http://Statistics.Data.gov.uk\Doc\Local Authority\30UN,20/01/2023,286.20,WESTMINSTER INSIGHT,WESTMINSTER INSIGHT course for NAME REDACTED - Tackling Homelessness 28.03.23 -,Online Purchase,124250,COMU-Communities,JBC-Homelessness
South Ribble Council,http://Statistics.Data.gov.uk\Doc\Local Authority\30UN,25/01/2023,65.45,Premier Inn Preston Central PR1 2AB,NAME REDACTED Premier Inn Preston Central PR1 2A,Accomodation,124250,COMU-Communities,JBC-Homelessness
South Ribble Council,http://Statistics.Data.gov.uk\Doc\Local Authority\30UN,25/01/2023,70.00,ibis Preston North PR3 5JE,NAME REDACTED ibis Preston North PR3 5JE 25.01.2,Accomodation,124250,COMU-Communities,JBC-Homelessness
South Ribble Council,http://Statistics.Data.gov.uk\Doc\Local Authority\30UN,17/02/2023,181.05,Premier Inn Preston Central PR1 2AB,NAME REDACTED Premier Inn Preston Central PR1 2A,Accomodation,124250,COMU-Communities,JBC-Homelessness
South Ribble Council,http://Statistics.Data.gov.uk\Doc\Local Authority\30UN,10/03/2023,197.20,Premier Inn Preston South PR5 6BZ,NAME REDACTED Premier Inn Preston South PR5 6BZ ,Accomodation,124050,COMU-Communities,JBC-Homelessness
South Ribble Council,http://Statistics.Data.gov.uk\Doc\Local Authority\30UN,15/03/2023,514.00,Hoseasons Beacon Fell View PR3 2TF,NAME REDACTED Hoseasons Beacon Fell View PR3 2TF,Accomodation,124050,COMU-Communities,JBC-Homelessness
